[Event "Late-Titled-Tuesday-Blitz-June-25-2024"]
[Site "Chess.com"]
[Date "2024.06.25"]
[Round "5"]
[White "JEHUBNER"]
[Black "JavierRuizVazquez"]
[Result "0-1"]
[WhiteElo "1985"]
[BlackElo "2390"]
[TimeControl "180+1"]
[EndTime "14:51:37 PDT"]
[Termination "JavierRuizVazquez won by resignation"]

1. e4 {[%clk 0:03:00.9]} 1... c6 {[%clk 0:03:00]} 2. d4 {[%clk 0:03:00.8]} 2...
d5 {[%clk 0:03:00.5]} 3. Nc3 {[%clk 0:03:00.7]} 3... dxe4 {[%clk 0:03:00.6]} 4.
Nxe4 {[%clk 0:03:01.6]} 4... Nf6 {[%clk 0:03:01]} 5. Nc3 {[%clk 0:02:57.8]} 5...
g6 {[%clk 0:02:55.9]} 6. Nf3 {[%clk 0:02:58.1]} 6... Bg7 {[%clk 0:02:56.4]} 7.
Be2 {[%clk 0:02:58.1]} 7... O-O {[%clk 0:02:56.9]} 8. O-O {[%clk 0:02:57.9]}
8... Qd6 {[%clk 0:02:45.3]} 9. Be3 {[%clk 0:02:54]} 9... Rd8 {[%clk 0:02:36.3]}
10. Nd2 {[%clk 0:02:52.1]} 10... e5 {[%clk 0:02:31.3]} 11. Nc4 {[%clk
0:02:35.9]} 11... Qe7 {[%clk 0:02:31.5]} 12. Nxe5 {[%clk 0:02:32.3]} 12... c5
{[%clk 0:02:18.2]} 13. Nf3 {[%clk 0:02:32.2]} 13... Bg4 {[%clk 0:02:16.7]} 14.
d5 {[%clk 0:02:24.3]} 14... Na6 {[%clk 0:02:10.3]} 15. h3 {[%clk 0:02:13.6]}
15... Bf5 {[%clk 0:02:07.9]} 16. Bxa6 {[%clk 0:02:09.3]} 16... bxa6 {[%clk
0:02:07.3]} 17. Qe1 {[%clk 0:01:48.6]} 17... Rab8 {[%clk 0:02:05.9]} 18. Na4
{[%clk 0:01:08.7]} 18... Rxd5 {[%clk 0:01:57.9]} 19. Qa5 {[%clk 0:00:51.1]}
19... Bxc2 {[%clk 0:01:53.8]} 20. Qxa6 {[%clk 0:00:47.9]} 20... Bd3 {[%clk
0:01:52.2]} 21. Qc6 {[%clk 0:00:38.6]} 21... Bb5 {[%clk 0:01:50.1]} 22. Rab1
{[%clk 0:00:39.1]} 22... Bxc6 {[%clk 0:01:50.1]} 0-1

[Event "Late-Titled-Tuesday-Blitz-June-25-2024"]
[Site "Chess.com"]
[Date "2024.06.25"]
[Round "5"]
[White "HamedWafa4"]
[Black "tgpgoat"]
[Result "1-0"]
[WhiteElo "2769"]
[BlackElo "2514"]
[TimeControl "180+1"]
[EndTime "14:51:38 PDT"]
[Termination "HamedWafa4 won by resignation"]

1. e4 {[%clk 0:03:00.9]} 1... c5 {[%clk 0:02:58.2]} 2. Nc3 {[%clk 0:02:59.7]}
2... Nc6 {[%clk 0:02:57.6]} 3. Nf3 {[%clk 0:02:59.5]} 3... e6 {[%clk 0:02:55.8]}
4. d4 {[%clk 0:02:59.1]} 4... cxd4 {[%clk 0:02:56.7]} 5. Nxd4 {[%clk 0:02:59.6]}
5... Qc7 {[%clk 0:02:56.6]} 6. g3 {[%clk 0:02:59.5]} 6... Nf6 {[%clk 0:02:54.8]}
7. Bg2 {[%clk 0:02:59.4]} 7... a6 {[%clk 0:02:54.5]} 8. O-O {[%clk 0:02:59.1]}
8... Nxd4 {[%clk 0:02:54.7]} 9. Qxd4 {[%clk 0:03:00]} 9... Bc5 {[%clk
0:02:54.6]} 10. Bf4 {[%clk 0:03:00.7]} 10... d6 {[%clk 0:02:54.2]} 11. Qd2
{[%clk 0:03:01.4]} 11... h6 {[%clk 0:02:53.4]} 12. Rad1 {[%clk 0:03:00.8]} 12...
e5 {[%clk 0:02:53.2]} 13. Be3 {[%clk 0:03:01.4]} 13... Bb4 {[%clk 0:02:53.7]}
14. a3 {[%clk 0:03:01.8]} 14... Bxc3 {[%clk 0:02:52]} 15. Qxc3 {[%clk
0:03:02.5]} 15... Qxc3 {[%clk 0:02:51]} 16. bxc3 {[%clk 0:03:03.2]} 16... Be6
{[%clk 0:02:14]} 17. Rxd6 {[%clk 0:03:01.8]} 17... Rc8 {[%clk 0:02:09]} 18. Rb1
{[%clk 0:02:57.5]} 18... Rxc3 {[%clk 0:01:59.6]} 19. Rxb7 {[%clk 0:02:57.4]}
19... O-O {[%clk 0:01:59.6]} 20. Rxa6 {[%clk 0:02:49.4]} 20... Rxc2 {[%clk
0:01:59.5]} 21. h3 {[%clk 0:02:44.3]} 21... Rc4 {[%clk 0:01:31.4]} 22. Rb4
{[%clk 0:02:27.9]} 22... Rfc8 {[%clk 0:01:26.6]} 23. Rab6 {[%clk 0:02:16]} 23...
Rc3 {[%clk 0:01:23.5]} 24. a4 {[%clk 0:02:08.7]} 24... Ra3 {[%clk 0:01:19.8]}
25. Rb8 {[%clk 0:02:04.8]} 25... Kh7 {[%clk 0:01:09.7]} 26. Rxc8 {[%clk
0:01:59]} 26... Bxc8 {[%clk 0:01:10.6]} 27. Bb6 {[%clk 0:01:53.8]} 27... Ra1+
{[%clk 0:00:57.3]} 28. Kh2 {[%clk 0:01:52.8]} 28... Ra2 {[%clk 0:00:58]} 29. a5
{[%clk 0:01:52.2]} 29... Rxf2 {[%clk 0:00:55]} 30. Bxf2 {[%clk 0:01:51.7]} 1-0

[Event "Late-Titled-Tuesday-Blitz-June-25-2024"]
[Site "Chess.com"]
[Date "2024.06.25"]
[Round "5"]
[White "LUISMIGUELOV"]
[Black "szachmistrz2500"]
[Result "0-1"]
[WhiteElo "2231"]
[BlackElo "2464"]
[TimeControl "180+1"]
[EndTime "14:51:39 PDT"]
[Termination "szachmistrz2500 won by resignation"]

1. e4 {[%clk 0:02:59.5]} 1... c6 {[%clk 0:03:00]} 2. d4 {[%clk 0:02:56]} 2... d5
{[%clk 0:03:00.1]} 3. Nd2 {[%clk 0:02:56.1]} 3... dxe4 {[%clk 0:02:59.8]} 4.
Nxe4 {[%clk 0:02:55.9]} 4... Nd7 {[%clk 0:02:58.9]} 5. Bd3 {[%clk 0:02:53.4]}
5... Ngf6 {[%clk 0:02:58.6]} 6. Qe2 {[%clk 0:02:51]} 6... Nxe4 {[%clk
0:02:57.9]} 7. Bxe4 {[%clk 0:02:49.5]} 7... Nf6 {[%clk 0:02:57.7]} 8. c3 {[%clk
0:02:34.6]} 8... Nxe4 {[%clk 0:02:57.7]} 9. Qxe4 {[%clk 0:02:34]} 9... Qd5
{[%clk 0:02:58.6]} 10. Qxd5 {[%clk 0:02:32.9]} 10... cxd5 {[%clk 0:02:59.5]} 11.
Bf4 {[%clk 0:02:28.5]} 11... Bf5 {[%clk 0:02:58.9]} 12. Ne2 {[%clk 0:02:25.1]}
12... e6 {[%clk 0:02:58]} 13. f3 {[%clk 0:02:24.4]} 13... h5 {[%clk 0:02:55.1]}
14. Kf2 {[%clk 0:02:17.5]} 14... Kd7 {[%clk 0:02:54.6]} 15. Rhe1 {[%clk
0:02:16.1]} 15... Be7 {[%clk 0:02:49.9]} 16. h3 {[%clk 0:02:14.6]} 16... h4
{[%clk 0:02:48.6]} 17. Be5 {[%clk 0:02:04.8]} 17... f6 {[%clk 0:02:46.4]} 18.
Bf4 {[%clk 0:02:00.9]} 18... g5 {[%clk 0:02:46.1]} 19. Bh2 {[%clk 0:01:55.6]}
19... Rhc8 {[%clk 0:02:42.5]} 20. Rad1 {[%clk 0:01:49.9]} 20... b5 {[%clk
0:02:41.6]} 21. a3 {[%clk 0:01:48.7]} 21... a5 {[%clk 0:02:41.1]} 22. Rc1 {[%clk
0:01:26.7]} 22... b4 {[%clk 0:02:39.7]} 23. cxb4 {[%clk 0:01:25.3]} 23... axb4
{[%clk 0:02:40.6]} 24. Rxc8 {[%clk 0:01:18.6]} 24... Rxc8 {[%clk 0:02:38.8]} 25.
a4 {[%clk 0:01:18.1]} 25... b3 {[%clk 0:02:31.8]} 26. Nc3 {[%clk 0:01:13.4]}
26... Rxc3 {[%clk 0:02:31.6]} 27. bxc3 {[%clk 0:01:11.2]} 27... b2 {[%clk
0:02:31.9]} 28. a5 {[%clk 0:01:10.9]} 28... Kc6 {[%clk 0:02:27]} 29. a6 {[%clk
0:01:07.8]} 29... Kb6 {[%clk 0:02:25.9]} 30. c4 {[%clk 0:00:50.1]} 30... dxc4
{[%clk 0:02:11.5]} 31. d5 {[%clk 0:00:49.6]} 31... Bc5+ {[%clk 0:02:09.7]} 32.
Kf1 {[%clk 0:00:47.7]} 32... Bd3+ {[%clk 0:02:08.6]} 0-1

[Event "Late-Titled-Tuesday-Blitz-June-25-2024"]
[Site "Chess.com"]
[Date "2024.06.25"]
[Round "5"]
[White "Mikhail_Golubev"]
[Black "HeroWilczek"]
[Result "1-0"]
[WhiteElo "2650"]
[BlackElo "2462"]
[TimeControl "180+1"]
[EndTime "14:51:40 PDT"]
[Termination "Mikhail_Golubev won by resignation"]

1. e4 {[%clk 0:03:00.9]} 1... e6 {[%clk 0:02:59.6]} 2. d4 {[%clk 0:02:59.9]}
2... d5 {[%clk 0:02:57.4]} 3. e5 {[%clk 0:03:00.2]} 3... c5 {[%clk 0:02:57.1]}
4. c3 {[%clk 0:03:00.6]} 4... Nc6 {[%clk 0:02:56.3]} 5. Nf3 {[%clk 0:03:00.7]}
5... Qb6 {[%clk 0:02:56.5]} 6. Bd3 {[%clk 0:02:59.4]} 6... Bd7 {[%clk
0:02:50.8]} 7. O-O {[%clk 0:02:58.9]} 7... cxd4 {[%clk 0:02:50.3]} 8. Nbd2
{[%clk 0:02:59.3]} 8... dxc3 {[%clk 0:02:49.3]} 9. bxc3 {[%clk 0:02:58.8]} 9...
Nge7 {[%clk 0:02:47.3]} 10. Re1 {[%clk 0:02:56]} 10... Ng6 {[%clk 0:02:46.4]}
11. Nb3 {[%clk 0:02:51.8]} 11... a5 {[%clk 0:02:41]} 12. Rb1 {[%clk 0:02:47.8]}
12... Qc7 {[%clk 0:02:35.1]} 13. Qe2 {[%clk 0:02:47.4]} 13... a4 {[%clk
0:02:30.1]} 14. Nbd4 {[%clk 0:02:43]} 14... Nxd4 {[%clk 0:02:27.5]} 15. cxd4
{[%clk 0:02:40.2]} 15... Be7 {[%clk 0:02:24.2]} 16. h4 {[%clk 0:02:28.9]} 16...
Nxh4 {[%clk 0:02:13.4]} 17. Nxh4 {[%clk 0:02:27.2]} 17... Bxh4 {[%clk
0:02:14.3]} 18. Qg4 {[%clk 0:02:18.1]} 18... Be7 {[%clk 0:02:05.3]} 19. Qxg7
{[%clk 0:02:11.9]} 19... Rf8 {[%clk 0:02:05.6]} 20. Bg5 {[%clk 0:02:05.5]} 20...
Bc6 {[%clk 0:02:03.6]} 21. Rec1 {[%clk 0:01:57.2]} 21... Bxg5 {[%clk 0:01:57.1]}
22. Qxg5 {[%clk 0:01:56.6]} 22... Qe7 {[%clk 0:01:57.8]} 23. Qd2 {[%clk
0:01:41.3]} 23... Rg8 {[%clk 0:01:57.7]} 24. Bb5 {[%clk 0:01:14.8]} 24... Rc8
{[%clk 0:01:46.6]} 25. Bxa4 {[%clk 0:01:12.4]} 25... Qg5 {[%clk 0:01:38]} 26.
Qxg5 {[%clk 0:01:09.1]} 26... Rxg5 {[%clk 0:01:38.9]} 27. Rxb7 {[%clk
0:01:07.2]} 1-0

[Event "Late-Titled-Tuesday-Blitz-June-25-2024"]
[Site "Chess.com"]
[Date "2024.06.25"]
[Round "5"]
[White "konradrutkowski"]
[Black "KatakuriDono"]
[Result "1/2-1/2"]
[WhiteElo "2507"]
[BlackElo "2328"]
[TimeControl "180+1"]
[EndTime "14:52:10 PDT"]
[Termination "Game drawn by repetition"]

1. e4 {[%clk 0:03:00.9]} 1... e5 {[%clk 0:02:59.3]} 2. Nf3 {[%clk 0:03:00.6]}
2... Nc6 {[%clk 0:02:59.4]} 3. d4 {[%clk 0:03:00.8]} 3... exd4 {[%clk
0:02:59.2]} 4. Nxd4 {[%clk 0:03:01.7]} 4... Qf6 {[%clk 0:02:59.2]} 5. Be3 {[%clk
0:02:58.8]} 5... Bc5 {[%clk 0:02:58.5]} 6. c3 {[%clk 0:02:58.9]} 6... Qg6 {[%clk
0:02:58.6]} 7. Nd2 {[%clk 0:02:55.4]} 7... Nf6 {[%clk 0:02:58.1]} 8. Qf3 {[%clk
0:02:34.8]} 8... d6 {[%clk 0:02:50.6]} 9. Nxc6 {[%clk 0:02:24.1]} 9... Bxe3
{[%clk 0:02:43]} 10. Qxe3 {[%clk 0:02:16.7]} 10... bxc6 {[%clk 0:02:42.8]} 11.
Be2 {[%clk 0:02:12.3]} 11... O-O {[%clk 0:02:39.5]} 12. O-O {[%clk 0:02:11.6]}
12... Re8 {[%clk 0:02:38.4]} 13. Bf3 {[%clk 0:02:07.8]} 13... Bg4 {[%clk
0:02:34.4]} 14. Bxg4 {[%clk 0:02:03.8]} 14... Nxg4 {[%clk 0:02:28.7]} 15. Qg3
{[%clk 0:02:03.6]} 15... Rab8 {[%clk 0:02:18.9]} 16. b3 {[%clk 0:01:57.7]} 16...
Nf6 {[%clk 0:02:13.2]} 17. Qxg6 {[%clk 0:01:51.2]} 17... hxg6 {[%clk 0:02:14.1]}
18. Rfe1 {[%clk 0:01:51.5]} 18... d5 {[%clk 0:02:10.5]} 19. exd5 {[%clk
0:01:45.9]} 19... cxd5 {[%clk 0:02:08.1]} 20. Kf1 {[%clk 0:01:38.9]} 20... c5
{[%clk 0:02:05.5]} 21. f3 {[%clk 0:01:26.7]} 21... Rbd8 {[%clk 0:01:55.3]} 22.
Rxe8+ {[%clk 0:01:22.6]} 22... Rxe8 {[%clk 0:01:50.5]} 23. Re1 {[%clk
0:01:23.1]} 23... Kf8 {[%clk 0:01:50.4]} 24. Rxe8+ {[%clk 0:01:18.4]} 24... Kxe8
{[%clk 0:01:50.6]} 25. Ke2 {[%clk 0:01:19.1]} 25... Kd7 {[%clk 0:01:49.6]} 26.
Kd3 {[%clk 0:01:19]} 26... Kd6 {[%clk 0:01:45.9]} 27. a3 {[%clk 0:01:14]} 27...
a5 {[%clk 0:01:43.5]} 28. g3 {[%clk 0:01:13.9]} 28... Nd7 {[%clk 0:01:43.2]} 29.
f4 {[%clk 0:01:10.4]} 29... Nf6 {[%clk 0:01:38.1]} 30. h3 {[%clk 0:00:56]} 30...
Nh5 {[%clk 0:01:32.9]} 31. Nf1 {[%clk 0:00:56.1]} 31... Nf6 {[%clk 0:01:32.6]}
32. Nd2 {[%clk 0:00:53.4]} 32... Nh5 {[%clk 0:01:29.2]} 33. Nf1 {[%clk
0:00:53.6]} 33... Nf6 {[%clk 0:01:29.2]} 34. Nd2 {[%clk 0:00:54.2]} 1/2-1/2

[Event "Late-Titled-Tuesday-Blitz-June-25-2024"]
[Site "Chess.com"]
[Date "2024.06.25"]
[Round "5"]
[White "AEMEffi"]
[Black "Necromon"]
[Result "0-1"]
[WhiteElo "2338"]
[BlackElo "2561"]
[TimeControl "180+1"]
[EndTime "14:52:19 PDT"]
[Termination "Necromon won by resignation"]

1. d4 {[%clk 0:03:00.1]} 1... Nf6 {[%clk 0:02:58.6]} 2. c4 {[%clk 0:02:59.7]}
2... c5 {[%clk 0:02:58.6]} 3. d5 {[%clk 0:02:59.5]} 3... b5 {[%clk 0:02:59]} 4.
Nd2 {[%clk 0:02:59.2]} 4... d6 {[%clk 0:02:57.6]} 5. e4 {[%clk 0:02:59.3]} 5...
g6 {[%clk 0:02:57]} 6. Ngf3 {[%clk 0:02:52.5]} 6... Bg7 {[%clk 0:02:56.7]} 7.
cxb5 {[%clk 0:02:50.3]} 7... a6 {[%clk 0:02:56.5]} 8. a4 {[%clk 0:02:41.2]} 8...
O-O {[%clk 0:02:54.9]} 9. bxa6 {[%clk 0:02:29.4]} 9... Qa5 {[%clk 0:02:52.5]}
10. Qc2 {[%clk 0:02:15.1]} 10... Nxa6 {[%clk 0:02:52.3]} 11. Bb5 {[%clk
0:02:03.7]} 11... Nb4 {[%clk 0:02:48.5]} 12. Qb1 {[%clk 0:02:03.6]} 12... Ba6
{[%clk 0:02:47.7]} 13. Nc4 {[%clk 0:01:33.2]} 13... Bxb5 {[%clk 0:02:05.1]} 14.
Nxa5 {[%clk 0:01:31.6]} 14... Bd3 {[%clk 0:01:59.2]} 15. Qxd3 {[%clk 0:00:47.7]}
15... Nxd3+ {[%clk 0:01:59.3]} 16. Ke2 {[%clk 0:00:48.3]} 16... Nxc1+ {[%clk
0:01:59.4]} 17. Rhxc1 {[%clk 0:00:49.2]} 17... Rxa5 {[%clk 0:02:00]} 18. Nd2
{[%clk 0:00:47.5]} 18... Rfa8 {[%clk 0:01:57]} 19. b3 {[%clk 0:00:45.3]} 19...
Nxe4 {[%clk 0:01:37.6]} 20. Nxe4 {[%clk 0:00:44.7]} 20... Bxa1 {[%clk
0:01:37.6]} 21. Rxa1 {[%clk 0:00:44.8]} 21... c4 {[%clk 0:01:37.8]} 22. Nd2
{[%clk 0:00:34.7]} 22... cxb3 {[%clk 0:01:37.2]} 23. Nxb3 {[%clk 0:00:35.6]}
23... Rxa4 {[%clk 0:01:37.3]} 24. Rc1 {[%clk 0:00:35.9]} 24... Kg7 {[%clk
0:01:34.7]} 25. f3 {[%clk 0:00:34.7]} 25... Ra2+ {[%clk 0:01:33.7]} 26. Nd2
{[%clk 0:00:34.9]} 26... R8a5 {[%clk 0:01:32.1]} 0-1

[Event "Late-Titled-Tuesday-Blitz-June-25-2024"]
[Site "Chess.com"]
[Date "2024.06.25"]
[Round "5"]
[White "Msb2"]
[Black "burbur555"]
[Result "1-0"]
[WhiteElo "3072"]
[BlackElo "2702"]
[TimeControl "180+1"]
[EndTime "14:52:24 PDT"]
[Termination "Msb2 won by resignation"]

1. d4 {[%clk 0:03:00.9]} 1... c6 {[%clk 0:03:00.9]} 2. c4 {[%clk 0:03:01]} 2...
d5 {[%clk 0:03:01.2]} 3. Nf3 {[%clk 0:03:01.5]} 3... Nf6 {[%clk 0:03:01.3]} 4.
Nc3 {[%clk 0:03:02.2]} 4... a6 {[%clk 0:03:01]} 5. Qc2 {[%clk 0:03:02.3]} 5...
b5 {[%clk 0:02:59.3]} 6. e4 {[%clk 0:03:02.2]} 6... dxc4 {[%clk 0:02:58]} 7. Be2
{[%clk 0:03:01.8]} 7... e6 {[%clk 0:02:54.9]} 8. O-O {[%clk 0:03:01.5]} 8... Be7
{[%clk 0:02:54.2]} 9. Rb1 {[%clk 0:02:50.5]} 9... h6 {[%clk 0:02:49]} 10. b3
{[%clk 0:02:45]} 10... b4 {[%clk 0:02:48.3]} 11. e5 {[%clk 0:02:45]} 11... Nfd7
{[%clk 0:02:45.4]} 12. Na4 {[%clk 0:02:32.1]} 12... c3 {[%clk 0:02:45]} 13. Qe4
{[%clk 0:02:32.6]} 13... a5 {[%clk 0:02:41.7]} 14. Qg4 {[%clk 0:02:32.3]} 14...
Kf8 {[%clk 0:02:41.5]} 15. Ne1 {[%clk 0:02:26.7]} 15... Nb6 {[%clk 0:02:33.8]}
16. Nxb6 {[%clk 0:02:24.5]} 16... Qxb6 {[%clk 0:02:33]} 17. Be3 {[%clk
0:02:18.9]} 17... Qd8 {[%clk 0:02:29.8]} 18. f4 {[%clk 0:02:14.9]} 18... Na6
{[%clk 0:02:26.2]} 19. Nc2 {[%clk 0:02:09.5]} 19... Nc7 {[%clk 0:02:23.1]} 20.
Bd3 {[%clk 0:02:06.4]} 20... g6 {[%clk 0:02:17.6]} 21. Qf3 {[%clk 0:01:58.1]}
21... Nd5 {[%clk 0:02:16.4]} 22. g4 {[%clk 0:01:50.9]} 22... h5 {[%clk
0:02:16.2]} 23. h3 {[%clk 0:01:40]} 23... hxg4 {[%clk 0:01:43.5]} 24. hxg4
{[%clk 0:01:40.9]} 24... Nxe3 {[%clk 0:01:42.7]} 25. Qxe3 {[%clk 0:01:41.8]}
25... Ba6 {[%clk 0:01:40.8]} 26. Bxa6 {[%clk 0:01:39.6]} 26... Rxa6 {[%clk
0:01:36.7]} 27. f5 {[%clk 0:01:36.3]} 27... Qd5 {[%clk 0:01:35.5]} 28. Rf3
{[%clk 0:01:35.3]} 28... exf5 {[%clk 0:01:31.9]} 29. gxf5 {[%clk 0:01:36.2]}
29... gxf5 {[%clk 0:01:31.4]} 30. Qf4 {[%clk 0:01:18.9]} 30... c5 {[%clk
0:01:28.4]} 31. Kf2 {[%clk 0:00:55.3]} 31... Rh2+ {[%clk 0:01:23.2]} 32. Qxh2
{[%clk 0:00:54.6]} 1-0

[Event "Late-Titled-Tuesday-Blitz-June-25-2024"]
[Site "Chess.com"]
[Date "2024.06.25"]
[Round "5"]
[White "ukchessbomber"]
[Black "machupichu10"]
[Result "0-1"]
[WhiteElo "2621"]
[BlackElo "2837"]
[TimeControl "180+1"]
[EndTime "14:52:50 PDT"]
[Termination "machupichu10 won by resignation"]

1. b4 {[%clk 0:03:00.9]} 1... g6 {[%clk 0:02:56.5]} 2. Bb2 {[%clk 0:03:00.8]}
2... Nf6 {[%clk 0:02:57.2]} 3. e3 {[%clk 0:03:01]} 3... Bg7 {[%clk 0:02:57.7]}
4. Nf3 {[%clk 0:03:01]} 4... O-O {[%clk 0:02:58.3]} 5. d4 {[%clk 0:03:01.5]}
5... b6 {[%clk 0:02:56.1]} 6. Be2 {[%clk 0:03:01.1]} 6... Bb7 {[%clk 0:02:56.6]}
7. O-O {[%clk 0:03:01.7]} 7... c5 {[%clk 0:02:55.5]} 8. bxc5 {[%clk 0:03:01.4]}
8... bxc5 {[%clk 0:02:56]} 9. dxc5 {[%clk 0:03:01.4]} 9... Na6 {[%clk
0:02:55.3]} 10. c4 {[%clk 0:02:59.9]} 10... Nxc5 {[%clk 0:02:54.9]} 11. Nbd2
{[%clk 0:03:00.5]} 11... d6 {[%clk 0:02:53.2]} 12. Rc1 {[%clk 0:02:58.4]} 12...
Rc8 {[%clk 0:02:53.3]} 13. Nb3 {[%clk 0:02:58.2]} 13... Nfd7 {[%clk 0:02:45.8]}
14. Bxg7 {[%clk 0:02:57.1]} 14... Kxg7 {[%clk 0:02:46.7]} 15. Qc2 {[%clk
0:02:54.6]} 15... Be4 {[%clk 0:02:41.1]} 16. Qb2+ {[%clk 0:02:55.1]} 16... Kg8
{[%clk 0:02:40.4]} 17. Rfd1 {[%clk 0:02:55.7]} 17... Rb8 {[%clk 0:02:40.1]} 18.
Qc3 {[%clk 0:02:55.5]} 18... Qc7 {[%clk 0:02:40]} 19. h4 {[%clk 0:02:50.3]}
19... Nf6 {[%clk 0:02:37.6]} 20. Ng5 {[%clk 0:02:34.1]} 20... Ba8 {[%clk
0:02:31.2]} 21. Nd4 {[%clk 0:02:30.7]} 21... a6 {[%clk 0:02:30.3]} 22. h5 {[%clk
0:02:15.7]} 22... e5 {[%clk 0:02:20.1]} 23. Nb3 {[%clk 0:02:04.3]} 23... h6
{[%clk 0:02:13.9]} 24. Nxc5 {[%clk 0:01:54.6]} 24... Qxc5 {[%clk 0:02:13.8]} 25.
Nh3 {[%clk 0:01:54.7]} 25... g5 {[%clk 0:02:13.2]} 26. Kf1 {[%clk 0:01:10.9]}
26... Rfc8 {[%clk 0:02:11.4]} 27. Rb1 {[%clk 0:01:05.9]} 27... Be4 {[%clk
0:01:43.8]} 28. Rb3 {[%clk 0:01:00.2]} 28... Bf5 {[%clk 0:01:41]} 29. Ng1 {[%clk
0:00:59.9]} 29... Ne4 {[%clk 0:01:41.2]} 30. Qb2 {[%clk 0:00:58.2]} 30... Rxb3
{[%clk 0:01:40.8]} 31. axb3 {[%clk 0:00:58.7]} 31... Qb4 {[%clk 0:01:36.8]} 32.
Bd3 {[%clk 0:00:54.6]} 32... Nc3 {[%clk 0:01:22.7]} 33. Bxf5 {[%clk 0:00:36.5]}
33... Nxd1 {[%clk 0:01:23]} 34. Qe2 {[%clk 0:00:37]} 34... Nc3 {[%clk 0:01:21]}
35. Qg4 {[%clk 0:00:27.3]} 35... Qxb3 {[%clk 0:01:21.3]} 36. g3 {[%clk
0:00:24.8]} 36... Qxc4+ {[%clk 0:01:21.2]} 0-1

[Event "Late-Titled-Tuesday-Blitz-June-25-2024"]
[Site "Chess.com"]
[Date "2024.06.25"]
[Round "5"]
[White "rhungaski"]
[Black "sergiochess83"]
[Result "1-0"]
[WhiteElo "2638"]
[BlackElo "2822"]
[TimeControl "180+1"]
[EndTime "14:53:03 PDT"]
[Termination "rhungaski won by resignation"]

1. b3 {[%clk 0:03:00.9]} 1... d5 {[%clk 0:02:53.6]} 2. Bb2 {[%clk 0:02:59.5]}
2... c5 {[%clk 0:02:54.1]} 3. e3 {[%clk 0:02:56.6]} 3... Nf6 {[%clk 0:02:47]} 4.
Nf3 {[%clk 0:02:55.1]} 4... g6 {[%clk 0:02:46.4]} 5. Bb5+ {[%clk 0:02:53.5]}
5... Bd7 {[%clk 0:02:45]} 6. Bxf6 {[%clk 0:02:49.6]} 6... exf6 {[%clk
0:02:43.8]} 7. Bxd7+ {[%clk 0:02:49.4]} 7... Qxd7 {[%clk 0:02:43.6]} 8. O-O
{[%clk 0:02:46.8]} 8... Nc6 {[%clk 0:02:40.4]} 9. d4 {[%clk 0:02:46.2]} 9...
cxd4 {[%clk 0:02:18.9]} 10. Nxd4 {[%clk 0:02:40.1]} 10... Bd6 {[%clk 0:02:16.3]}
11. Nc3 {[%clk 0:02:10.1]} 11... Nxd4 {[%clk 0:02:07.3]} 12. exd4 {[%clk
0:02:11]} 12... Bxh2+ {[%clk 0:02:06.1]} 13. Kh1 {[%clk 0:02:02.8]} 13... Bc7
{[%clk 0:02:01.9]} 14. Re1+ {[%clk 0:02:00.1]} 14... Kf8 {[%clk 0:01:59.5]} 15.
Qf3 {[%clk 0:02:01]} 15... Qd6 {[%clk 0:01:42.8]} 16. g3 {[%clk 0:01:58.2]}
16... Rd8 {[%clk 0:01:42.5]} 17. Nb5 {[%clk 0:01:42.1]} 17... Qc6 {[%clk
0:01:40.4]} 18. Nxc7 {[%clk 0:01:41.9]} 18... Qxc7 {[%clk 0:00:55.6]} 19. Qxf6
{[%clk 0:01:40.4]} 19... Rg8 {[%clk 0:00:56]} 20. Re6 {[%clk 0:01:31]} 20... g5
{[%clk 0:00:30.7]} 21. Rae1 {[%clk 0:01:26.5]} 21... Rg6 {[%clk 0:00:30.9]} 22.
Qh8+ {[%clk 0:01:20.1]} 22... Rg8 {[%clk 0:00:30.9]} 23. Qxh7 {[%clk 0:01:15.7]}
23... Rg7 {[%clk 0:00:31.3]} 24. Qh8+ {[%clk 0:01:08.6]} 24... Rg8 {[%clk
0:00:31.6]} 25. Re8+ {[%clk 0:00:59.9]} 25... Rxe8 {[%clk 0:00:30.8]} 26. Rxe8+
{[%clk 0:01:00.8]} 26... Kxe8 {[%clk 0:00:31.7]} 27. Qxg8+ {[%clk 0:01:01.6]}
27... Ke7 {[%clk 0:00:32]} 28. Qxg5+ {[%clk 0:01:01.2]} 28... Kf8 {[%clk
0:00:32.6]} 29. Qxd5 {[%clk 0:00:52.3]} 29... Qxc2 {[%clk 0:00:32.5]} 30. Qc5+
{[%clk 0:00:52.2]} 1-0

[Event "Late-Titled-Tuesday-Blitz-June-25-2024"]
[Site "Chess.com"]
[Date "2024.06.25"]
[Round "5"]
[White "Davidalhesa2007"]
[Black "Walter_White_Poland"]
[Result "0-1"]
[WhiteElo "1906"]
[BlackElo "2407"]
[TimeControl "180+1"]
[EndTime "14:53:06 PDT"]
[Termination "Walter_White_Poland won by checkmate"]

1. d4 {[%clk 0:02:57.9]} 1... d5 {[%clk 0:02:59.6]} 2. Nc3 {[%clk 0:02:57.6]}
2... Nf6 {[%clk 0:02:57.2]} 3. Bf4 {[%clk 0:02:57.5]} 3... a6 {[%clk 0:02:56.3]}
4. e3 {[%clk 0:02:57.5]} 4... b5 {[%clk 0:02:56.1]} 5. Nf3 {[%clk 0:02:55.4]}
5... Bb7 {[%clk 0:02:56]} 6. a3 {[%clk 0:02:55.8]} 6... e6 {[%clk 0:02:56]} 7.
b4 {[%clk 0:02:56.1]} 7... Nbd7 {[%clk 0:02:53.2]} 8. Bd3 {[%clk 0:02:55.4]}
8... Bd6 {[%clk 0:02:47.5]} 9. Ne5 {[%clk 0:02:55.4]} 9... h6 {[%clk 0:02:41.5]}
10. O-O {[%clk 0:02:53.9]} 10... Nb6 {[%clk 0:02:33]} 11. Qf3 {[%clk 0:02:47.7]}
11... Nc4 {[%clk 0:02:29.7]} 12. Qg3 {[%clk 0:02:03.4]} 12... g5 {[%clk
0:02:13.3]} 13. Bxg5 {[%clk 0:01:55.3]} 13... hxg5 {[%clk 0:02:12.5]} 14. Qxg5
{[%clk 0:01:55.9]} 14... Rg8 {[%clk 0:01:53.2]} 15. Qh4 {[%clk 0:01:44.1]} 15...
Nxe5 {[%clk 0:01:41.1]} 16. dxe5 {[%clk 0:01:41.8]} 16... Bxe5 {[%clk
0:01:41.1]} 17. Nxb5 {[%clk 0:01:31.3]} 17... Bxa1 {[%clk 0:01:28.1]} 18. Rxa1
{[%clk 0:01:26.7]} 18... axb5 {[%clk 0:01:27.8]} 19. Bxb5+ {[%clk 0:01:27]}
19... Ke7 {[%clk 0:01:24]} 20. a4 {[%clk 0:01:24.3]} 20... d4 {[%clk 0:01:22.8]}
21. f3 {[%clk 0:01:13.8]} 21... dxe3 {[%clk 0:01:06.4]} 22. a5 {[%clk
0:01:10.3]} 22... Qd5 {[%clk 0:01:03.1]} 23. Be2 {[%clk 0:01:06]} 23... Rh8
{[%clk 0:00:53.4]} 24. Qe1 {[%clk 0:01:00.7]} 24... Ba6 {[%clk 0:00:32]} 25. Rd1
{[%clk 0:00:58.7]} 25... Qe5 {[%clk 0:00:28.9]} 26. b5 {[%clk 0:00:47.8]} 26...
Qxh2+ {[%clk 0:00:27.3]} 27. Kf1 {[%clk 0:00:47.5]} 27... Qh1# {[%clk
0:00:27.3]} 0-1